Cogmind - Beta 14 @@@ ROGUE MODE // 2024.09.07 @ 15:41:56 Player: 0Z-4NL Result: Escaped! Performance ------------- Evolutions (9) 4500 Regions Visited (21) 4200 Robots Destroyed (121) 605 Value Destroyed (3935) 3935 Prototype IDs (75) 1500 Alien Tech Used (0) 0 Bonus (9848) 9848 TOTAL SCORE: 24588 Bonus ------- Follower Combat Kills 1211 Network Hubs Disabled 600 Aligned with FarCom 300 Met Zhirov 300 Met Warlord at Base 500 MAIN.C Attacked Warlord 500 Met Warlord at Research 2000 Invited to Help at Command 2000 Win 3000 Friendly Fire -563 Cogmind --------- Core Integrity 1582/1600 Matter 300/300 Energy 213/225 System Corruption 0% Temperature Cool (65) Movement Flying (22) Location To Epsilon Eridani Parts ------- > --- POWER (2) -------- Compact Particle Reactor Light Quantum Reactor > --- PROPULSION (9) --- Field Propulsion Drive Electron Diverter Cooled Impulse Thruster Impulse Thruster Array Impulse Thruster Array Impulse Thruster Array > --- UTILITY (12) ----- Medium Storage Unit Structural Scanner Machine Analyzer Experimental Optical Array Improved Transmission Jammer Improved Utility Shielding Centrium Light Armor Plating Improved Hacking Suite Advanced Hacking Suite Advanced Hacking Suite Advanced Hacking Suite Advanced Hacking Suite > --- WEAPON (2) ------- Compact HERF Cannon Plasma Sword > --- INVENTORY (10) --- Micro Antimatter Reactor Xenon Bombardment Thruster Impulse Thruster Impulse Thruster Array Experimental Heat Sink Quantum Shading Machine Enhanced Nova Cannon Fusion Bomb Launcher Vortex Lance (28) Peak State ------------ > --- POWER ------------ Compact Particle Reactor Light Quantum Reactor > --- PROPULSION ------- Field Propulsion Drive Electron Diverter Cooled Impulse Thruster Impulse Thruster Array Impulse Thruster Array Impulse Thruster Array > --- UTILITY ---------- Experimental Heat Sink Medium Storage Unit Machine Analyzer Experimental Optical Array Improved Transmission Jammer Improved Utility Shielding Centrium Light Armor Plating Improved Hacking Suite Advanced Hacking Suite Advanced Hacking Suite Advanced Hacking Suite Advanced Hacking Suite > --- WEAPON ----------- Enhanced Nova Cannon Plasma Sword > --- INVENTORY -------- Micro Antimatter Reactor Xenon Bombardment Thruster Structural Scanner Compact HERF Cannon Fusion Bomb Launcher Vortex Lance [Rating: 175] Favorites ----------- Power Reinforced Antimatter Reactor Engine Heavy Ion Engine Power Core Cooled Fission Core Reactor Reinforced Antimatter Reactor Propulsion Cooled VTOL Module Treads Armored Medium Treads Leg Flexi-carbon Leg Wheel Compact Wheel Hover Unit Cooled Airjet Flight Unit Cooled VTOL Module Utility Hacking Suite Device Structural Scanner Storage Medium Storage Unit Processor Enhanced Optical Array Hackware Hacking Suite Protection Improved Medium Armor Plating Weapon Chainsword Energy Gun EM Pulse Gun Energy Cannon Cooled Phase Cannon Ballistic Gun Light Assault Rifle Ballistic Cannon Light Cannon Launcher Grenade Launcher Special Weapon RU-N14's Throwing Claymores v3 Impact Weapon Heavy Flail Slashing Weapon Chainsword Piercing Weapon Vortex Lance Special Melee Weapon Datajack Build | -11 -10 -10 -10 -9 -8 -7 -7 -7 -6 -5 -5 -5 -4 -4 -4 -4 -4 -4 -3 -2 -1 ------- Run | Yrd Mat Min Exi Min Mat Fac Was Fac Fac Fac Upp War Pro Fac Ext Cet Arc Hub Res Res Acc Slots Evolved 18 | . . . . . 4 2 . . 2 2 . . . 2 . . . . 2 2 2 Power 1 | . . . . . . . . . . . . . . 1 . . . . . . . Propulsion 7 | . . . . . 2 . . . 1 . . . . 1 . . . . . 1 2 Utility 10 | . . . . . 2 2 . . 1 2 . . . . . . . . 2 1 . Weapon . | . . . . . . . . . . . . . . . . . . . . . . Parts Attached 375 | . 22 10 3 16 33 18 7 14 18 4 2 37 3 13 56 2 13 26 9 52 17 Power 30 | . 2 . . . 3 . 1 2 . . . 5 . 1 7 . 1 4 . 3 1 Engine 6 | . 2 . . . 2 . 1 . . . . . . . . . 1 . . . . Core 13 | . . . . . 1 . . 2 . . . 3 . 1 4 . . 2 . . . Reactor 11 | . . . . . . . . . . . . 2 . . 3 . . 2 . 3 1 Propulsion 89 | . 3 3 . 9 5 1 2 7 4 1 . 8 1 1 15 1 4 6 3 14 1 Treads 14 | . 1 1 . 5 . . . . . . . . . . 6 1 . . . . . Leg 7 | . . . . . . . . . . . . . . . 7 . . . . . . Wheel 8 | . 2 2 . 4 . . . . . . . . . . . . . . . . . Hover 27 | . . . . . 5 1 2 1 . . . . . . . . 1 6 3 8 . Flight 33 | . . . . . . . . 6 4 1 . 8 1 1 2 . 3 . . 6 1 Utility 170 | . 11 1 2 2 18 10 2 5 12 3 1 9 1 7 24 1 6 13 6 30 6 Device 93 | . 3 . 1 1 10 5 . 3 9 1 1 5 . 6 13 . 1 8 3 19 4 Storage 9 | . 2 . . . 2 . . . . 1 . . . . 1 . . 2 . . 1 Processor 11 | . 1 . . . . . . . 1 1 . 1 . . 2 . . 1 1 3 . Hackware 15 | . . . . . 1 2 . 1 2 . . 1 1 . . . 4 . . 3 . Protection 42 | . 5 1 1 1 5 3 2 1 . . . 2 . 1 8 1 1 2 2 5 1 Artifact . | . . . . . . . . . . . . . . . . . . . . . . Weapon 86 | . 6 6 1 5 7 7 2 . 2 . 1 15 1 4 10 . 2 3 . 5 9 Energy Gun 9 | . 2 1 . . . . . . . . 1 2 . 2 1 . . . . . . Energy Cannon 17 | . . . . . . . . . . . . 1 . . 4 . . 1 . 4 7 Ballistic Gun 5 | . 1 . . . 1 3 . . . . . . . . . . . . . . . Ballistic Cannon 5 | . . 2 . 2 1 . . . . . . . . . . . . . . . . Launcher 20 | . 2 1 1 2 . 3 1 . 1 . . 5 . . 1 . . . . 1 2 Special Weapon 3 | . . . . . . . . . . . . 1 . 1 . . 1 . . . . Impact Weapon 7 | . 1 2 . 1 3 . . . . . . . . . . . . . . . . Slashing Weapon 10 | . . . . . . 1 1 . 1 . . 2 . . 3 . 1 1 . . . Piercing Weapon 8 | . . . . . . . . . . . . 4 1 1 1 . . 1 . . . Special Melee Weapon 2 | . . . . . 2 . . . . . . . . . . . . . . . . Unidentified Prototypes 26 | . 1 . . 1 1 . . 1 2 . . 12 . . 1 2 . 1 . 4 . Parts Lost 17 | . . 1 . 5 1 1 2 1 . . . . . 1 2 . 3 . . . . Power 5 | . . . . 1 1 . 1 1 . . . . . . 1 . . . . . . Propulsion 5 | . . . . 1 . 1 1 . . . . . . . . . 2 . . . . Utility 6 | . . 1 . 2 . . . . . . . . . 1 1 . 1 . . . . Weapon 1 | . . . . 1 . . . . . . . . . . . . . . . . . Highest Loss Streak 4 | . . 1 . 4 1 1 2 1 . . . . . 1 1 . 3 . . . . To Critical Strikes . | . . . . . . . . . . . . . . . . . . . . . . Average Slot Usage (%) 94 | . 99 100 100 97 95 97 85 91 98 100 100 99 94 94 89 85 67 94 99 98 88 Engine 4 | . 14 14 14 12 6 7 5 1 . . . . . . . . 3 1 . . . Core 2 | . . . . . 2 . . 4 5 5 5 4 5 10 2 . . 4 9 6 . Reactor 2 | . . . . . . . . . . . . . . . 7 10 2 2 . 1 8 Treads 5 | . 13 7 . 11 . . . . . . . . . . 12 22 9 . . . . Leg 2 | . . . . . . . . . . . . . . . 10 . . . . . . Wheel 4 | . 14 21 28 16 . . . . . . . . . . . . . . . . . Hover 8 | . . . . . 34 30 27 25 . . . . . . . . . 24 27 26 . Flight 7 | . . . . . . . . 4 33 29 29 28 23 26 5 5 12 3 . 2 24 Device 7 | . . . . . 9 7 7 7 6 5 11 7 11 5 13 10 5 11 10 13 8 Storage 6 | . 14 14 14 14 9 7 7 5 . 1 5 5 5 5 3 5 3 4 4 3 3 Processor 3 | . . . . . . . . . . 11 5 8 5 5 5 5 1 . 9 8 8 Hackware 12 | . . . . . 8 22 23 23 32 27 23 23 23 26 8 5 15 26 23 17 20 Protection 8 | . 13 14 14 13 6 6 5 7 6 5 5 5 5 4 8 10 4 2 3 7 8 Energy Gun 3 | . 14 11 14 9 . . . . . . 4 1 . . . 5 1 . . . . Energy Cannon 1 | . . . . . . . . . . . . . . . 4 5 . 4 4 4 3 Ballistic Gun 1 | . 11 . . . 2 4 . . . . . . . . . . . . . . . Ballistic Cannon 1 | . . 13 14 4 1 . . . . . . . . . . . . . . . . Launcher 1 | . . 1 . 12 . . . . 4 5 . . 1 . . . . . . . . Slashing Weapon 3 | . . . . . . 2 6 7 6 5 5 4 5 5 4 . 4 3 4 4 4 Peak Build Rating 175 | 6 12 12 20 16 44 56 51 57 64 74 79 103 98 109 112 125 125 112 126 171 175 Average Rating 73 | 6 10 11 13 13 35 46 45 49 59 73 78 89 96 106 100 117 87 98 120 148 171 On Entrance 65 | 6 6 11 12 14 9 39 49 51 48 64 74 79 92 95 99 108 125 65 112 122 159 Naked Turns . | . . . . . . . . . . . . . . . . . . . . . . Heaviest Build 105 | 10 96 97 96 97 86 30 28 28 16 22 27 29 29 38 105 105 105 66 66 78 54 Greatest Support 161 | 20 20 26 26 26 33 48 33 33 31 28 27 34 34 38 132 161 161 84 84 93 73 Greatest Overweight (x) 6 | . 5 6 3 5 5 . . . 3 . . . . . 1 . 2 1 1 1 . Average Overweight (x) . | . 3 3 3 3 . . . . . . . . . . . . . . . . . Largest Inventory Capacity 25 | 8 25 25 25 25 25 10 10 10 5 10 10 10 10 10 10 10 10 15 15 15 10 Average Capacity 13 | 8 19 25 25 25 13 10 10 9 5 6 10 10 10 10 8 10 8 10 15 13 8 Most Carried 25 | 6 25 25 25 25 24 10 10 10 5 8 9 10 10 10 10 10 10 13 15 15 10 Average Carried 12 | 6 15 24 24 24 12 9 9 9 4 5 8 9 9 9 8 10 7 9 13 13 7 Final Capacity 25 | 8 25 25 25 25 10 10 10 5 5 10 10 10 10 10 10 10 5 15 15 5 10 Final Carried 25 | 6 24 25 25 23 10 10 10 5 5 8 9 10 9 10 10 10 5 13 15 5 10 Class Distribution -------------------- 31% | Mutant 18% | Scavenger-Mutant 13% | Hacker-Mutant 10% | Hacker-Sprinter 9% | Wizard-Ninja 6% | Hacker-Ninja 4% | Wizard-Mutant 3% | Wizard-Sprinter Dominant Class ---------------- Mutant | -10/Materials Mutant | -10/Mines Mutant | -10/Exiles Mutant | -9/Mines Mutant | -8/Materials Hacker-Mutant | -7/Factory Hacker-Mutant | -7/Waste Hacker-Mutant | -7/Factory Hacker-Sprinter | -6/Factory Hacker-Ninja | -5/Factory Hacker-Sprinter | -5/Upper Caves Hacker-Sprinter | -5/Warlord Hacker-Sprinter | -4/Proximity Caves Wizard-Sprinter | -4/Factory Scavenger-Mutant | -4/Extension Scavenger-Mutant | -4/Cetus Wizard-Sprinter | -4/Archives Wizard-Mutant | -4/Hub_04(d) Wizard-Ninja | -3/Research Hacker-Ninja | -2/Research Wizard-Ninja | -1/Access Resources | -11 -10 -10 -10 -9 -8 -7 -7 -7 -6 -5 -5 -5 -4 -4 -4 -4 -4 -4 -3 -2 -1 ----------- Run | Yrd Mat Min Exi Min Mat Fac Was Fac Fac Fac Upp War Pro Fac Ext Cet Arc Hub Res Res Acc Matter Collected 4708 | 203 270 204 26 242 458 272 96 114 79 177 20 384 20 120 733 30 67 288 110 530 265 Remotely . | . . . . . . . . . . . . . . . . . . . . . . Salvage Created 5223 | 84 343 72 . 70 446 180 . 153 130 195 83 58 155 78 1635 46 187 536 145 228 399 Parts 235 | 4 24 10 . 4 12 9 . 4 4 14 . 3 4 4 74 1 11 23 5 8 17 Haulers Intercepted 10 | . 2 . . . 3 . . . . . . . . . . . . 3 . 1 1 Recyclers Shooed 4 | . . 2 . . 1 . . . . . . . . . . . . 1 . . . Parts Field Recycled . | . . . . . . . . . . . . . . . . . . . . . . Retrieved Matter . | . . . . . . . . . . . . . . . . . . . . . . Parts Self-Destructed 4 | . . . . . . . . . . . . . 4 . . . . . . . . Prevented 3 | . . . . . . . . . . . 3 . . . . . . . . . . Kills | -11 -10 -10 -10 -9 -8 -7 -7 -7 -6 -5 -5 -5 -4 -4 -4 -4 -4 -4 -3 -2 -1 ------- Run | Yrd Mat Min Exi Min Mat Fac Was Fac Fac Fac Upp War Pro Fac Ext Cet Arc Hub Res Res Acc Combat Hostiles Destroyed 59 | . 8 6 . 3 2 1 . . . . 1 . 2 3 23 3 3 . . . 4 Melee 3 | . . . . . . . . . . . . . 2 1 . . . . . . . Guns 11 | . 6 2 . . . . . . . . 1 . . . . 2 . . . . . Cannons 19 | . . 2 . 1 1 . . . . . . . . 1 12 . . . . . 2 AOE 21 | . 2 2 . 2 . 1 . . . . . . . 1 8 . 3 . . . 2 Classes Destroyed 16 | 1 5 2 . 2 2 1 . . . . 1 1 . . 1 . . . . . . Worker 13 | . . . . . 1 4 . . 1 1 . . . . 1 . . 3 1 . 1 Builder 11 | . . . . 1 . . . . . 3 . . . 2 3 . . 2 . . . Tunneler 2 | . . 1 . . . . . . . . . . . . . . . . . . 1 Hauler 10 | . 2 . . . 3 . . . . . . . . . . . . 3 . 1 1 Recycler 13 | 1 1 . . . 2 1 . 2 1 1 . . . . 2 . . 1 1 . . Operator 7 | . 1 . . . 2 1 . . . . . . . . 1 . . . . 1 1 Watcher 6 | . 1 . . . 1 . . . . . . . . 1 . . . 1 . 2 . Swarmer 16 | . 6 5 . . . . . . . . . . . . 4 . . . . . 1 Grunt 18 | . 2 . . 2 . . . . . . . . . . 8 . 3 . . . 3 Brawler 1 | . . . . . . . . . . . 1 . . . . . . . . . . Sentry 12 | . . . . . 2 . . . . . . . . 1 9 . . . . . . Demolisher 1 | . . . . 1 . . . . . . . . . . . . . . . . . Hunter 3 | . . . . . . . . . . . . 1 2 . . . . . . . . Programmer 3 | . . . . . . 1 . . . . . . . 2 . . . . . . . Behemoth 2 | . . . . . . . . . . . . . . . 2 . . . . . . Cetus Guard 3 | . . . . . . . . . . . . . . . . 3 . . . . . Decomposer 1 | . . . . . . . . . . . 1 . . . . . . . . . . Assembled 1 | . . 1 . . . . . . . . . . . . . . . . . . . Best Kill Streak 5 | 1 3 3 . 3 2 4 . 1 1 2 1 . 2 3 5 3 3 4 1 1 4 Combat Bots Only 5 | . 3 3 . 3 1 1 . . . . 1 . 2 2 5 3 3 . . . 3 Max Kills in Single Turn 4 | 1 2 1 . 1 1 1 . 1 1 1 1 1 1 2 4 1 2 1 1 1 2 Gunslinging . | . . . . . . . . . . . . . . . . . . . . . . Exploded 4 | . 2 1 . 1 . 1 . . . . . . . 1 4 . 2 . . . 1 Melee 1 | . . . . . . . . . . . . . 1 1 . . . . . . . Uniques/NPCs Destroyed . | . . . . . . . . . . . . . . . . . . . . . . Combat | -11 -10 -10 -10 -9 -8 -7 -7 -7 -6 -5 -5 -5 -4 -4 -4 -4 -4 -4 -3 -2 -1 -------- Run | Yrd Mat Min Exi Min Mat Fac Was Fac Fac Fac Upp War Pro Fac Ext Cet Arc Hub Res Res Acc Hostile Shots Fired 244 | . 24 31 . 27 18 10 3 . . . . . 22 7 64 11 5 12 . 4 6 Missed 91 | . 8 10 . 7 11 4 1 . . . . . 11 2 21 8 . 4 . 3 1 Damage Taken 4117 | . 176 291 . 609 254 221 85 98 . . . . 233 153 1067 73 568 142 . 34 113 Core 657 | . 21 39 . 53 93 68 . . . . . . 65 64 14 24 142 56 . . 18 Absorbed by Shields . | . . . . . . . . . . . . . . . . . . . . . . Ignored by Resistances 11 | . . . . . . . . . . . . . . . 11 . . . . . . Regen/Repaired (Parts) 130 | . . . . . . . 87 43 . . . . . . . . . . . . . Core Remaining (%) 89 | 100 . . . 54 83 . . 90 100 . . . 93 . . . . 73 100 100 98 Volleys Fired 315 | 3 39 30 . 11 24 12 . . . 1 8 7 . 8 111 23 2 . . 12 24 Largest 2 | 2 2 2 . 2 1 1 . . . 1 1 1 . 1 1 1 1 . . 1 1 Hottest 225 | 60 70 75 . 75 39 30 . . . 30 225 75 . 40 120 40 . . . 120 120 Shots Fired 361 | 6 69 37 . 17 24 12 . . . 1 8 7 . 8 111 23 2 . . 12 24 Gun 149 | 6 66 19 . 7 13 . . . . . 8 6 . 5 . 19 . . . . . Cannon 170 | . . 13 . 6 11 . . . . . . . . . 105 4 . . . 12 19 Launcher 37 | . 3 5 . 4 . 12 . . . 1 . 1 . . 6 . . . . . 5 Special 5 | . . . . . . . . . . . . . . 3 . . 2 . . . . Kinetic 76 | 3 30 13 . 6 24 . . . . . . . . . . . . . . . . Thermal 180 | 3 36 . . . . . . . . . 8 6 . . 105 4 . . . 8 10 Explosive 42 | . 3 5 . 4 . 12 . . . 1 . 1 . 3 6 . 2 . . . 5 Electromagnetic 39 | . . 19 . 7 . . . . . . . . . . . . . . . 4 9 Entropic 24 | . . . . . . . . . . . . . . 5 . 19 . . . . . Robot Hit Streak 18 | 5 14 5 . 7 11 5 . . . . 10 . . 13 18 13 1 . . 5 3 Robot Miss Streak 4 | . 4 2 . 1 2 2 . . . . . . . . 3 2 . . . 2 1 Penetration Max . | . . . . . . . . . . . . . . . . . . . . . . Secondary Targets 1 | . 1 . . . . . . . . . . . . . . . . . . . . Max Gunslinging Chain 1 | . 1 . . . . . . . . . . . . . . . . . . . . Capacitor 128 | . . . . . . . . . . . . . . . 105 23 . . . . . Shots Hit Robots 282 | 5 42 18 . 11 32 11 1 2 2 6 6 1 8 11 75 15 4 13 2 10 7 Core Hits 159 | 2 23 9 . 6 7 7 . . 1 5 4 1 3 10 40 4 7 7 1 5 17 Critical Kills 6 | . 1 . . . 2 . . . . . . . . . 3 . . . . . . Critical Parts Destroyed 3 | . . . . . 1 1 . . . . . . . . . 1 . . . . . Critical Strikes 21 | . 4 1 . . 3 1 . . . . . . 2 3 4 1 . 1 . 1 . Burn 3 | . 3 . . . . . . . . . . . . . . . . . . . . Meltdown 3 | . . . . . . . . . . . . . . . 3 . . . . . . Destroy 2 | . 1 . . . 1 . . . . . . . . . . . . . . . . Corrupt 1 | . . 1 . . . . . . . . . . . . . . . . . . . Smash 3 | . . . . . 2 1 . . . . . . . . . . . . . . . Sever 5 | . . . . . . . . . . . . . 1 1 1 . . 1 . 1 . Detonate 1 | . . . . . . . . . . . . . . . . 1 . . . . . Sunder 3 | . . . . . . . . . . . . . 1 2 . . . . . . . Melee Attacks 282 | . 4 2 . 4 23 21 5 19 11 24 11 9 36 33 16 . 3 22 5 13 21 Impact 49 | . 4 2 . 4 23 16 . . . . . . . . . . . . . . . Slashing 208 | . . . . . . 5 5 19 11 24 11 7 24 26 16 . 3 18 5 13 21 Piercing 4 | . . . . . . . . . . . . . . . . . . 4 . . . Entropic 21 | . . . . . . . . . . . . 2 12 7 . . . . . . . Sneak Attacks 43 | . . . . . 4 3 . 2 2 5 1 1 . 3 6 . . 11 2 3 . Combat Hostiles 1 | . . . . . . . . . . . . . . . 1 . . . . . . Follow-up Attacks 6 | . . . . . . . . . . . . . 2 4 . . . . . . . Damage Inflicted 16320 | 51 645 486 . 316 1188 746 36 202 168 418 182 102 610 1294 4854 1092 1304 1065 191 678 692 Guns 1804 | 51 454 156 . 76 191 . . . . . 96 . . . . 780 . . . . . Cannons 4161 | . . 115 . 74 140 . . . . . . . . . 3246 35 . . . 242 309 Explosions 3898 | . 191 215 . 166 . 274 . . . . . 34 . 425 1054 277 927 . . . 335 Melee 6261 | . . . . . 857 472 36 202 168 418 86 68 610 726 554 . 324 1065 191 436 48 Ramming . | . . . . . . . . . . . . . . . . . . . . . . Kinetic 675 | 18 137 115 . 74 331 . . . . . . . . . . . . . . . . Thermal 4238 | 33 317 . . 39 . 87 . . . . 96 . . . 3246 312 . . . 108 . Explosive 3495 | . 191 215 . 127 . 187 . . . . . 34 . 425 1054 . 927 . . . 335 Electromagnetic 675 | . . 156 . 76 . . . . . . . . . . . . . . . 134 309 Impact 1264 | . . . . . 857 407 . . . . . . . . . . . . . . . Slashing 4101 | . . . . . . 65 36 202 168 418 86 68 140 381 554 . 377 931 191 436 48 Piercing 134 | . . . . . . . . . . . . . . . . . . 134 . . . Entropic 1738 | . . . . . . . . . . . . . 470 488 . 780 . . . . . Highest Corruption 4 | . . . . . 2 1 . . . . . 4 4 1 1 1 1 2 . . . Average Corruption 1 | . . . . . 2 1 . . . . . 4 4 1 1 1 1 1 . . . Corruption Purged 1 | . . . . . . 1 . . . . . . . . . . . . . . . Corruption Blocked . | . . . . . . . . . . . . . . . . . . . . . . Effects 46 | . . . . . 5 1 . . . . . 7 8 1 21 1 . 2 . . . Message Errors 12 | . . . . . . . . . . . . 4 3 . 4 1 . . . . . Matter Fused 7 | . . . . . 2 . . . . . . 2 . . 3 . . . . . . Heat Flow Errors 4 | . . . . . . . . . . . . . 1 1 2 . . . . . . Energy Discharges 3 | . . . . . . . . . . . . . 1 . 2 . . . . . . Parts Fused 1 | . . . . . . . . . . . . . . . 1 . . . . . . Data Loss (minor) 11 | . . . . . 3 . . . . . . 1 2 . 4 . . 1 . . . Data Loss (major) 7 | . . . . . . 1 . . . . . . 1 . 4 . . 1 . . . Alerts 1 | . . . . . . . . . . . . . . . 1 . . . . . . Overload Shots 15 | . . . . . . . . . . . 1 . . . 14 . . . . . . Overflow Damage 1914 | . 35 30 . . 238 325 . 132 67 59 . . 63 123 308 . 91 210 59 171 3 Projectiles 73 | . . . . . . . . . . . . . . . 73 . . . . . . Explosions 245 | . 35 30 . . . 62 . . . . . . . 35 67 . 16 . . . . Melee 1596 | . . . . . 238 263 . 132 67 59 . . 63 88 168 . 75 210 59 171 3 Knockbacks 5 | . . 1 . . 3 1 . . . . . . . . . . . . . . . Impact 4 | . . . . . 3 1 . . . . . . . . . . . . . . . Kinetic 1 | . . 1 . . . . . . . . . . . . . . . . . . . Secondary . | . . . . . . . . . . . . . . . . . . . . . . Self-Inflicted Damage 120 | . . 69 . 33 . 18 . . . . . . . . . . . . . . . Shots 4 | . . 2 . 1 . 1 . . . . . . . . . . . . . . . Rammed . | . . . . . . . . . . . . . . . . . . . . . . Targets Rammed . | . . . . . . . . . . . . . . . . . . . . . . Kicked . | . . . . . . . . . . . . . . . . . . . . . . Crushed . | . . . . . . . . . . . . . . . . . . . . . . Highest Temperature 751 | 20 207 9 . 84 13 . . . 10 . 192 92 88 238 751 96 . 338 . 22 202 Average Temperature 80 | 15 48 5 . 32 5 . . . 4 . 54 50 47 137 131 32 . 92 . 3 75 Received Heat Transfer 720 | . 63 . . 75 45 . . . . . . . . 9 489 . . 30 . . 9 Effects 15 | . 1 . . . . . . . . . . . . . 8 . . 3 . . 3 Shutdowns 4 | . . . . . . . . . . . . . . . 3 . . 1 . . . Energy Bleed 2 | . . . . . . . . . . . . . . . 1 . . 1 . . . Interference 6 | . 1 . . . . . . . . . . . . . 2 . . . . . 3 Matter Decay 1 | . . . . . . . . . . . . . . . 1 . . . . . . Short Circuit 1 | . . . . . . . . . . . . . . . 1 . . . . . . Damage (minor) 1 | . . . . . . . . . . . . . . . . . . 1 . . . Siege Activations . | . . . . . . . . . . . . . . . . . . . . . . Robots Corrupted 7 | . . . . . 5 2 . . . . . . . . . . . . . . . Combat Hostiles 1 | . . . . . 1 . . . . . . . . . . . . . . . . Parts Fried 17 | . . . . . 8 4 . . . . . . . . . . . . . 2 3 Impact Corruptions 13 | . . . . . 7 6 . . . . . . . . . . . . . . . Robots Melted 4 | . . . . . . . . . . . . . . . 3 1 . . . . . Combat Hostiles 4 | . . . . . . . . . . . . . . . 3 1 . . . . . Parts Melted 7 | . 1 . . . . . . . . . . . . . 6 . . . . . . Heat Transferred 4666 | 75 1077 . . . . 50 . . . . 185 . . . 2931 237 . . . 111 . Parts Sabotaged . | . . . . . . . . . . . . . . . . . . . . . . Parts Stolen . | . . . . . . . . . . . . . . . . . . . . . . Parts Stripped . | . . . . . . . . . . . . . . . . . . . . . . Power Chain Reactions 1 | . . . . 1 . . . . . . . . . . . . . . . . . Alert | -11 -10 -10 -10 -9 -8 -7 -7 -7 -6 -5 -5 -5 -4 -4 -4 -4 -4 -4 -3 -2 -1 ------- Run | Yrd Mat Min Exi Min Mat Fac Was Fac Fac Fac Upp War Pro Fac Ext Cet Arc Hub Res Res Acc Peak Influence 377 | 5 194 211 . 105 231 247 32 267 217 361 . . . 279 377 312 216 164 173 200 337 Initial 196 | . 3 33 . . . 70 30 22 80 105 . . . 40 86 196 124 61 85 96 47 Average 136 | 3 82 118 . 22 90 99 24 139 167 216 . . . 133 242 282 157 105 156 94 176 Maximum Alert Level 1 | . . 1 . . 1 1 . 1 1 1 . . . 1 1 1 1 . . 1 1 Low Security (%) 77 | 100 100 74 . 100 84 85 100 74 88 47 . . . 91 47 13 85 100 100 93 54 Level 1 22 | . . 25 . . 15 14 . 25 11 52 . . . 8 52 86 14 . . 6 45 Level 2 . | . . . . . . . . . . . . . . . . . . . . . . Level 3 . | . . . . . . . . . . . . . . . . . . . . . . Level 4 . | . . . . . . . . . . . . . . . . . . . . . . Level 5 . | . . . . . . . . . . . . . . . . . . . . . . High Security . | . . . . . . . . . . . . . . . . . . . . . . Max Security . | . . . . . . . . . . . . . . . . . . . . . . Squads Dispatched 23 | . 2 . . . 3 4 . 3 1 1 . . . 1 2 . . 4 1 1 . Investigation 12 | . 1 . . . 3 1 . 3 . 1 . . . . 1 . . 2 . . . Extermination 6 | . . . . . . 1 . . 1 . . . . 1 . . . 2 1 . . Reinforcement 5 | . 1 . . . . 2 . . . . . . . . 1 . . . . 1 . Assault . | . . . . . . . . . . . . . . . . . . . . . . Garrison . | . . . . . . . . . . . . . . . . . . . . . . Intercept . | . . . . . . . . . . . . . . . . . . . . . . Searches Triggered . | . . . . . . . . . . . . . . . . . . . . . . Construction Impeded 1 | . . . . . . 1 . . . . . . . . . . . . . . . Haulers Reinforced 1 | . . . . . . . . . . . . . . . . . . . . 1 . Active Scanning Responses . | . . . . . . . . . . . . . . . . . . . . . . Cargo Convoy Interrupts . | . . . . . . . . . . . . . . . . . . . . . . Stealth | -11 -10 -10 -10 -9 -8 -7 -7 -7 -6 -5 -5 -5 -4 -4 -4 -4 -4 -4 -3 -2 -1 --------- Run | Yrd Mat Min Exi Min Mat Fac Was Fac Fac Fac Upp War Pro Fac Ext Cet Arc Hub Res Res Acc Distress Signals 19 | . 2 . . . 1 1 . 3 . 1 . . . . 3 1 1 1 . 4 1 Communications Jammed 5 | . . . . . . . . . . . . . . . . . . 2 . . 3 Distress Signals 5 | . . . . . . . . . . . . . . . . . . 2 . . 3 Times Spotted 196 | . 18 7 . 4 13 3 6 8 2 1 4 35 3 6 38 6 11 6 . 14 11 Peak Tracking Total 16 | . 4 3 . 3 5 2 6 3 1 1 2 11 3 3 5 5 16 6 1 6 5 Tactical Retreats 20 | . 1 . . . 2 1 2 1 . 1 1 . 1 . 4 . 1 1 . 4 . Traps | -11 -10 -10 -10 -9 -8 -7 -7 -7 -6 -5 -5 -5 -4 -4 -4 -4 -4 -4 -3 -2 -1 ------- Run | Yrd Mat Min Exi Min Mat Fac Was Fac Fac Fac Upp War Pro Fac Ext Cet Arc Hub Res Res Acc Traps Triggered 9 | . . . . . . 4 . . 1 . . . . . 2 . . . . . 2 Indirectly . | . . . . . . . . . . . . . . . . . . . . . . Trap Hack Attempts . | . . . . . . . . . . . . . . . . . . . . . . Triggered . | . . . . . . . . . . . . . . . . . . . . . . Disarmed . | . . . . . . . . . . . . . . . . . . . . . . Reprogrammed . | . . . . . . . . . . . . . . . . . . . . . . Reused 4 | . . . . . 4 . . . . . . . . . . . . . . . . Traps Reconfigurated 11 | . . . . . 3 7 . 1 . . . . . . . . . . . . . Traps Extracted . | . . . . . . . . . . . . . . . . . . . . . . Installed 4 | . . . . 1 3 . . . . . . . . . . . . . . . . Triggered 16 | . . 1 . . 4 . . . . . 3 8 . . . . . . . . . Most Traps Carried 4 | . . . . 4 3 . . . . . . . . . . . . . . . . Machines | -11 -10 -10 -10 -9 -8 -7 -7 -7 -6 -5 -5 -5 -4 -4 -4 -4 -4 -4 -3 -2 -1 ---------- Run | Yrd Mat Min Exi Min Mat Fac Was Fac Fac Fac Upp War Pro Fac Ext Cet Arc Hub Res Res Acc Machines Disabled 11 | . . . . 1 . 2 . 1 . . . 1 . 1 2 . . . . 1 2 Max in Single Turn 2 | . . . . 1 . 2 . . . . . 1 . 1 2 . . . . 1 1 Garrison Access 11 | . . . . . 1 1 . 1 1 . . . . . . . . 1 . 3 3 Network Hub 3 | . . . . . . . . . . . . . . . . . . 3 . . . Machines Repaired . | . . . . . . . . . . . . . . . . . . . . . . Machines Dismantled . | . . . . . . . . . . . . . . . . . . . . . . Machines Sabotaged 2 | . . . . . . . . . . . . . . . . . . 2 . . . Overloaded Fab Kills . | . . . . . . . . . . . . . . . . . . . . . . Hacking | -11 -10 -10 -10 -9 -8 -7 -7 -7 -6 -5 -5 -5 -4 -4 -4 -4 -4 -4 -3 -2 -1 --------- Run | Yrd Mat Min Exi Min Mat Fac Was Fac Fac Fac Upp War Pro Fac Ext Cet Arc Hub Res Res Acc Machines Accessed 113 | . 8 . 2 . 10 13 . 11 8 7 . 6 . 7 18 . . 7 2 3 11 Terminals 74 | . 7 . . . 7 9 . 5 6 4 . . . 5 16 . . 6 2 1 6 Fabricators 8 | . . . . . . 1 . 4 . 2 . . . . . . . . . . 1 Repair Stations 3 | . . . . . . . . 1 1 . . . . . 1 . . . . . . Recycling Units 7 | . 1 . . . 2 1 . . . 1 . . . 1 1 . . . . . . Scanalyzers 3 | . . . . . . 1 . . . . . . . 1 . . . . . . 1 Garrison Access 10 | . . . . . 1 1 . 1 1 . . . . . . . . 1 . 2 3 Total Hacks 323 | . 30 . 2 . 34 36 . 40 19 24 . 18 . 18 32 . . 19 26 7 18 Successful 196 | . 14 . 2 . 22 15 . 22 10 16 . 18 . 14 18 . . 14 13 3 15 Failed 126 | . 15 . . . 12 21 . 18 9 8 . . . 4 14 . . 5 13 4 3 Catastrophic 13 | . 2 . . . 2 2 . 3 . . . . . . 1 . . 1 . 2 . Database Lockouts 1 | . 1 . . . . . . . . . . . . . . . . . . . . Manual 155 | . 27 . 1 . 25 15 . 17 11 9 . . . 8 11 . . 8 16 4 3 Terminals 236 | . 28 . . . 28 28 . 19 16 18 . . . 13 26 . . 17 26 4 13 Fabricators 20 | . . . . . . 2 . 13 . 4 . . . . . . . . . . 1 Repair Stations 7 | . . . . . . . . 3 2 . . . . . 2 . . . . . . Recycling Units 16 | . 2 . . . 4 3 . . . 2 . . . 1 4 . . . . . . Scanalyzers 7 | . . . . . . 2 . . . . . . . 4 . . . . . . 1 Garrison Access 17 | . . . . . 2 1 . 5 1 . . . . . . . . 2 . 3 3 Terminal Hacks 121 | . 9 . 2 . 9 9 . 8 6 11 . 18 . 8 12 . . 9 10 1 9 Record 12 | . . . 1 . . . . . . . . 11 . . . . . . . . . Part Schematic 3 | . . . . . . . . 2 . 1 . . . . . . . . . . . Robot Analysis 8 | . 3 . . . 2 1 . 1 . 1 . . . . . . . . . . . Prototype ID Bank 9 | . 2 . . . . 1 . . . . . 6 . . . . . . . . . Open Door 10 | . . . . . . . . . . . . 1 . . 8 . . . . . 1 Open DSF 1 | . . . . . . . . 1 . . . . . . . . . . . . . Level Access Points 10 | . . . . . 1 1 . 1 1 1 . . . 1 . . . 1 1 1 1 Branch Access Points 3 | . . . . . . 1 . . . 1 . . . 1 . . . . . . . Machine Index 2 | . . . . . . . . . . 1 . . . . . . . . . . 1 Terminal Index 8 | . 1 . . . 1 . . . 1 1 . . . 1 1 . . 1 1 . . Scanalyzer Index 1 | . . . . . . . . . . . . . . . . . . . 1 . . Garrison Index 1 | . . . . . . . . . . . . . . . . . . . 1 . . Alert Level 7 | . . . . . 1 1 . . . 1 . . . . 1 . . 1 1 . 1 Unreport Threat 5 | . . . . . . 1 . 1 . . . . . 1 . . . 1 . . 1 Locate Traps 20 | . 2 . . . 1 2 . 1 2 2 . . . 1 2 . . 3 1 . 3 Maintenance Status 1 | . . . . . . . . . . . . . . . . . . . 1 . . Surveillance Status 1 | . . . . . . . . . . . . . . . . . . . 1 . . Patrol Status 1 | . . . . . . . . . . . . . . . . . . . 1 . . Recall Extermination 2 | . . . . . . . . . 1 . . . . . . . . 1 . . . Recall Reinforcements 1 | . 1 . . . . . . . . . . . . . . . . . . . . Hauler Manifests 3 | . . . . . 1 1 . . . . . . . . . . . . 1 . . Zone Layout 11 | . . . . . 2 . . 1 1 2 . . . 3 . . . 1 . . 1 Derelict Proto ID Bank 1 | . . . 1 . . . . . . . . . . . . . . . . . . Fabricator Hacks 11 | . . . . . . 1 . 7 . 2 . . . . . . . . . . 1 Network Status 4 | . . . . . . 1 . 1 . 1 . . . . . . . . . . 1 Load Schematic 4 | . . . . . . . . 3 . 1 . . . . . . . . . . . Build 3 | . . . . . . . . 3 . . . . . . . . . . . . . Repair Station Hacks 4 | . . . . . . . . 2 1 . . . . . 1 . . . . . . Scan Component 2 | . . . . . . . . 1 . . . . . . 1 . . . . . . Repair 1 | . . . . . . . . 1 . . . . . . . . . . . . . Refit 1 | . . . . . . . . . 1 . . . . . . . . . . . . Recycling Unit Hacks 4 | . . . . . 2 . . . . . . . . 1 1 . . . . . . Report Inventory 2 | . . . . . 2 . . . . . . . . . . . . . . . . Retrieve Components 2 | . . . . . . . . . . . . . . 1 1 . . . . . . Scanalyzer 5 | . . . . . . . . . . . . . . 4 . . . . . . 1 Insert Component 3 | . . . . . . . . . . . . . . 2 . . . . . . 1 Analyze 2 | . . . . . . . . . . . . . . 2 . . . . . . . Garrison Access Hacks 10 | . . . . . 1 1 . 1 1 . . . . . . . . 1 . 2 3 Seal Access 10 | . . . . . 1 1 . 1 1 . . . . . . . . 1 . 2 3 Unauthorized Hacks 41 | . 5 . . . 10 4 . 4 2 3 . . . 1 4 . . 4 3 . 1 Terminals 34 | . 4 . . . 8 4 . 2 2 2 . . . 1 3 . . 4 3 . 1 Track 3 | . 1 . . . 2 . . . . . . . . . . . . . . . . Assimilate 5 | . . . . . 2 . . . 1 . . . . . 1 . . . . . 1 Botnet 16 | . 2 . . . 3 3 . 1 . 1 . . . 1 1 . . 2 2 . . Disrupt 3 | . . . . . . . . . 1 1 . . . . 1 . . . . . . Operators 5 | . 1 . . . 1 1 . 1 . . . . . . . . . . 1 . . Sabotage 2 | . . . . . . . . . . . . . . . . . . 2 . . . Fabricators 3 | . . . . . . . . 2 . 1 . . . . . . . . . . . Prioritize 2 | . . . . . . . . 2 . . . . . . . . . . . . . Recompile 1 | . . . . . . . . . . 1 . . . . . . . . . . . Repair Stations . | . . . . . . . . . . . . . . . . . . . . . . Recycling Units 4 | . 1 . . . 2 . . . . . . . . . 1 . . . . . . Mask 1 | . . . . . . . . . . . . . . . 1 . . . . . . Tunnel 3 | . 1 . . . 2 . . . . . . . . . . . . . . . . Scanalyzers . | . . . . . . . . . . . . . . . . . . . . . . Garrison Access . | . . . . . . . . . . . . . . . . . . . . . . Data Cores Recovered 1 | . . . . . . . . . . . . . . . . . . . . . 1 Used 1 | . . . . . . . . . . . . . . . . . . . . . 1 Hacking Detections 71 | . 7 . . . 8 12 . 6 7 6 . . . 4 12 . . 4 1 1 3 Full Trace Events 5 | . . . . . 1 1 . 3 . . . . . . . . . . . . . Feedback Events . | . . . . . . . . . . . . . . . . . . . . . . Feedback Blocked . | . . . . . . . . . . . . . . . . . . . . . . Robot Schematics Acquired . | . . . . . . . . . . . . . . . . . . . . . . Robots Built . | . . . . . . . . . . . . . . . . . . . . . . Authchips . | . . . . . . . . . . . . . . . . . . . . . . Time . | . . . . . . . . . . . . . . . . . . . . . . Total Robot Build Rating . | . . . . . . . . . . . . . . . . . . . . . . Part Schematics Acquired 4 | . . . . . . . . 2 . 1 . . . 1 . . . . . . . Parts Built 3 | . . . . . . . . 3 . . . . . . . . . . . . . Authchips . | . . . . . . . . . . . . . . . . . . . . . . Time 268 | . . . . . . . . 268 . . . . . . . . . . . . . Total Part Build Rating 12 | . . . . . . . . 12 . . . . . . . . . . . . . Parts Repaired 1 | . . . . . . . . 1 . . . . . . . . . . . . . Time 22 | . . . . . . . . 22 . . . . . . . . . . . . . Parts Recycled . | . . . . . . . . . . . . . . . . . . . . . . Recycled Matter . | . . . . . . . . . . . . . . . . . . . . . . Retrieved Matter . | . . . . . . . . . . . . . . . . . . . . . . Retrieved Components 6 | . . . . . . . . . . . . . . . 6 . . . . . . Parts Scanalyzed 2 | . . . . . . . . . . . . . . 2 . . . . . . . Part Schematics Acquired 1 | . . . . . . . . . . . . . . 1 . . . . . . . Parts Damaged . | . . . . . . . . . . . . . . . . . . . . . . Bothacking | -11 -10 -10 -10 -9 -8 -7 -7 -7 -6 -5 -5 -5 -4 -4 -4 -4 -4 -4 -3 -2 -1 ------------ Run | Yrd Mat Min Exi Min Mat Fac Was Fac Fac Fac Upp War Pro Fac Ext Cet Arc Hub Res Res Acc Used RIF Installer . | . . . . . . . . . . . . . . . . . . . . . . Robots Hacked . | . . . . . . . . . . . . . . . . . . . . . . Non-combat . | . . . . . . . . . . . . . . . . . . . . . . Combat . | . . . . . . . . . . . . . . . . . . . . . . Robot Hacks Applied . | . . . . . . . . . . . . . . . . . . . . . . Relay Couplers Released 1 | . . . . . . . . . . . . . . . . . . . . 1 . Machine Destruction 1 | . . . . . . . . . . . . . . . . . . . . 1 . Fabnet Peak Effective % . | . . . . . . . . . . . . . . . . . . . . . . Robots Rewired 18 | . . . . . . . . . . . . . . . 18 . . . . . . Allies Hacked . | . . . . . . . . . . . . . . . . . . . . . . Hacks Repelled . | . . . . . . . . . . . . . . . . . . . . . . Allies | -11 -10 -10 -10 -9 -8 -7 -7 -7 -6 -5 -5 -5 -4 -4 -4 -4 -4 -4 -3 -2 -1 -------- Run | Yrd Mat Min Exi Min Mat Fac Was Fac Fac Fac Upp War Pro Fac Ext Cet Arc Hub Res Res Acc Total Allies 56 | . . 2 . . 2 . 20 3 1 . . . . . 28 . . . . . . Largest Group 19 | . . 2 1 . 1 . 19 18 7 1 . . . . 8 8 5 . . . . Highest-Rated Group 465 | . . 44 13 . 10 . 465 465 210 26 . . . . 389 295 160 . . . . Highest-Rated Ally 159 | . . 31 13 . 10 . 35 35 31 26 . . . . 159 51 46 . . . . Total Orders 12 | . . . . . 2 . . . . 6 . . . . 2 2 . . . . . STAY 7 | . . . . . 2 . . . . 3 . . . . 1 1 . . . . . FOLLOW 5 | . . . . . . . . . . 3 . . . . 1 1 . . . . . Ally Attacks 416 | . . 2 . . . . 58 116 21 . . . . . 154 38 27 . . . . Total Damage 9502 | . . 22 . . . . 2307 2010 274 . . . . . 3637 849 403 . . . . Kills 47 | . . 1 . . . . 7 16 2 . . . . . 17 3 1 . . . . Allies Corrupted . | . . . . . . . . . . . . . . . . . . . . . . Allies Melted 3 | . . . . . . . . 1 . . . . . . 2 . . . . . . Intel | -11 -10 -10 -10 -9 -8 -7 -7 -7 -6 -5 -5 -5 -4 -4 -4 -4 -4 -4 -3 -2 -1 ------- Run | Yrd Mat Min Exi Min Mat Fac Was Fac Fac Fac Upp War Pro Fac Ext Cet Arc Hub Res Res Acc Robot Analysis Total 8 | . 3 . . . 2 1 . 1 . 1 . . . . . . . . . . . Derelict Logs Recovered 4 | . . 1 . 1 . . . . . . 1 . 1 . . . . . . . . Drone Launches . | . . . . . . . . . . . . . . . . . . . . . . Drone Recoveries . | . . . . . . . . . . . . . . . . . . . . . . Exploration | -11 -10 -10 -10 -9 -8 -7 -7 -7 -6 -5 -5 -5 -4 -4 -4 -4 -4 -4 -3 -2 -1 ------------- Run | Yrd Mat Min Exi Min Mat Fac Was Fac Fac Fac Upp War Pro Fac Ext Cet Arc Hub Res Res Acc Turns Passed 14464 | 20 1150 488 458 1638 750 673 317 540 380 406 299 618 295 358 2948 183 141 665 290 1148 699 Spaces Moved 18255 | 10 634 258 330 652 1077 1266 487 1128 1075 802 885 1184 615 641 1978 89 172 902 425 2368 1277 Core 2 | . . . . . . . . . 2 . . . . . . . . . . . . Treads 722 | . . . . . . . . . . . . . . . 607 89 26 . . . . Legs 1069 | 10 5 . . . . . . . . . . . . . 1054 . . . . . . Wheels 1892 | . 629 258 330 652 23 . . . . . . . . . . . . . . . . Hover 6852 | . . . . . 1054 1266 487 933 . . . . . . . . 8 622 425 2057 . Flight 7718 | . . . . . . . . 195 1073 802 885 1184 615 641 317 . 138 280 . 311 1277 Fastest Speed 14 | 120 115 135 135 135 38 22 35 26 14 20 24 24 28 25 20 166 23 29 53 29 22 Average Speed 55 | 120 150 148 135 138 42 38 39 33 24 27 24 24 29 25 118 166 56 54 54 39 27 Slowest Speed 243 | 120 175 190 135 175 175 40 42 38 200 29 24 34 34 25 243 167 180 150 131 118 29 Overloaded Moves 43 | . . . . . . 1 8 . 4 4 . . . . . . 11 . . . 15 Propulsion Burnouts . | . . . . . . . . . . . . . . . . . . . . . . Robots Hopped 6 | . . . . . . . . . 1 . . . . . 1 . . . . . 4 Cave-ins Triggered . | . . . . . . . . . . . . . . . . . . . . . . Exploration Rate (%) 57 | 3 95 55 70 89 56 39 95 37 33 18 90 94 54 18 97 51 99 66 11 62 39 Regions Visited 21 Branch Regions 10 Pre-discovered Areas 5 | . 1 . 1 1 2 . . . . . . . . . . . . . . . . Known Exits Taken 11 | . 1 . 1 . 1 . . 1 1 1 . . 1 1 . . . 1 1 1 . Unknown Exits Taken 8 | 1 . 1 . 1 . . . . . . 1 1 . . 1 1 1 . . . . Scrap Searched 5 | . . 1 . 1 . . . . . . 3 . . . . . . . . . . Spaces Dug 251 | . 10 25 . 4 7 34 . 17 9 18 11 4 21 23 19 2 . 6 3 13 25 Terrain Destroyed 588 | . 14 43 . 34 10 88 . 17 9 27 11 8 21 63 112 19 43 6 3 13 47 Melee 166 | . 4 . . 4 7 14 . 17 9 18 10 4 21 19 7 . . 6 3 8 15 Projectile 49 | . . . . . 3 . . . . . 1 . . 4 20 6 . . . 5 10 AOE 373 | . 10 43 . 30 . 74 . . . 9 . 4 . 40 85 13 43 . . . 22 Terrain Rammed . | . . . . . . . . . . . . . . . . . . . . . . Walls Destroyed . | . . . . . . . . . . . . . . . . . . . . . . Machines Disabled . | . . . . . . . . . . . . . . . . . . . . . . Actions | -11 -10 -10 -10 -9 -8 -7 -7 -7 -6 -5 -5 -5 -4 -4 -4 -4 -4 -4 -3 -2 -1 --------- Run | Yrd Mat Min Exi Min Mat Fac Was Fac Fac Fac Upp War Pro Fac Ext Cet Arc Hub Res Res Acc Total 21917 | 12 755 317 346 1361 1318 1401 602 1248 1169 947 946 1493 684 786 2555 124 209 1035 479 2573 1557 Wait 2037 | . 21 14 . 666 108 60 96 65 46 106 38 203 37 91 159 8 . 59 17 38 205 Move 18223 | 9 633 257 329 651 1076 1266 486 1127 1072 801 884 1183 614 640 1975 88 171 901 424 2367 1269 Hop 5 | . . . . . . . . . 1 . . . . . 1 . . . . . 3 Pick Up 213 | . 23 2 6 5 18 5 2 10 9 8 2 18 . 4 39 . 6 11 12 25 8 Fast Attach 123 | . 5 1 2 . 6 3 4 1 3 . . 17 . . 27 2 6 16 2 23 5 Attach 75 | . 2 1 . 4 12 3 2 4 5 3 1 5 1 2 12 . 3 2 2 9 2 Detach 50 | . 5 1 . 2 4 2 1 . 1 1 1 4 . . 11 . 1 4 1 10 1 Swap 177 | . 15 8 1 12 15 12 1 9 10 1 1 15 2 11 17 . 4 8 5 20 10 Drop 288 | . 8 1 8 5 29 6 5 13 10 2 . 33 1 3 65 3 13 12 11 56 4 Fire 315 | 3 39 30 . 11 24 12 . . . 1 8 7 . 8 111 23 2 . . 12 24 Melee 268 | . 4 2 . 4 23 21 5 19 11 24 11 8 29 27 16 . 3 22 5 13 21 Ram . | . . . . . . . . . . . . . . . . . . . . . . Kick . | . . . . . . . . . . . . . . . . . . . . . . Crush . | . . . . . . . . . . . . . . . . . . . . . . Escape Stasis 23 | . . . . . . 11 . . 1 . . . . . 6 . . . . . 5 Rewire 116 | . . . . . . . . . . . . . . . 116 . . . . . . Trap 4 | . . . . 1 3 . . . . . . . . . . . . . . . . Miscellaneous . | . . . . . . . . . . . . . . . . . . . . . . Route ------- -11/Scrapyard -10/Materials (discovered 5 exits: [*Mat x3] / *Min x2) -10/Mines (discovered 3 exits: [*Mat x2] / *Exi) -10/Exiles (discovered 2 exits: *Min x2) -9/Mines (discovered 2 exits: *Mat x2) -8/Materials (discovered 3 exits: *Fac x3) -7/Factory (discovered 6 exits: *Fac x4 / *Low x2) -7/Waste -7/Factory (discovered 5 exits: *Fac x4 / *Low) -6/Factory (discovered 6 exits: *Fac x4 / [*Low x2]) -5/Factory (discovered 6 exits: Fac x4 / *Upp x2) -5/Upper Caves -5/Warlord -4/Proximity Caves -4/Factory (discovered 9 exits: *Res x4 / *Upp x2 / *Ext x2 / Arm) -4/Extension (discovered 3 exits: *Res x2 / [*Cet]) -4/Cetus -4/Archives (discovered 3 exits: *Res / *Hub x2) -4/Hub_04(d) (discovered 4 exits: *Res x4) -3/Research (discovered 4 exits: *Res x3 / Tes) -2/Research (discovered 5 exits: *Acc x3 / [*Qua x2]) -1/Access To Epsilon Eridani History --------- Turn | Location | Event 10 | -11/Scrapyard | Discovered new exit (range 3) 21 | -11/Scrapyard | Entered Materials 271 | -10/Materials | Discovered new exit (range 13) 302 | -10/Materials | Build established: Mutant 377 | -10/Materials | Discovered new exit (range 15) 422 | -10/Materials | Discovered new exit (range 14) 545 | -10/Materials | Discovered new exit (range 13) 696 | -10/Materials | Central database locked down 801 | -10/Materials | Discovered new exit (range 15) 1076 | -10/Materials | Identified exit to Mines 1171 | -10/Materials | Entered Mines 1189 | -10/Mines | Met a Derelict bent on vengeance 1217 | -10/Mines | Excavation squad dispatched 1217 | -10/Mines | A large section of the Mines collapsed 1412 | -10/Mines | Discovered new exit (range 3) 1466 | -10/Mines | Found a damaged Exp. Sensor Array with a note attached 1469 | -10/Mines | Found Prototype Device 1561 | -10/Mines | Deemed a non-threat by the Exiles lab entrance 1561 | -10/Mines | Discovered new exit (range 5) 1592 | -10/Mines | Discovered new exit (range 9) 1659 | -10/Mines | Entered Exiles 1659 | -10/Exiles | Accompanied by 1 ally 1660 | -10/Exiles | Identified exit to Mines 1696 | -10/Exiles | Met 8R-AWN 1719 | -10/Exiles | Met EX-HEX 1772 | -10/Exiles | Met EX-DEC 1779 | -10/Exiles | Learned location of Zion (-6) 1880 | -10/Exiles | Met EX-BIN 1899 | -10/Exiles | Aligned with FarCom system 1900 | -10/Exiles | Given EX-Vault access code 1935 | -10/Exiles | Opened EX-Vault 1945 | -10/Exiles | Found PSU Rigger 1956 | -10/Exiles | Found Trap Reconfigurator 1987 | -10/Exiles | Warned to stay clear of 0b10 Research branches 2117 | -10/Exiles | Left Exiles lab with Trap Reconfigurator 2117 | -10/Exiles | Entered Mines 2186 | -9/Mines | Assembled infested the area 3204 | -9/Mines | Found a hidden stash of uninstalled traps 3495 | -9/Mines | Discovered new exit (range 5) 3634 | -9/Mines | Discovered new exit (range 13) 3636 | -9/Mines | Found the Drone Emporium 3688 | -9/Mines | Found Prototype Device 3689 | -9/Mines | Identified Sensor Drone Bay 3692 | -9/Mines | Lost 4 parts (1p1n1u1w) 3755 | -9/Mines | Entered Materials 3755 | -8/Materials | Evolved 4 slots: Propulsion x2, Utility x2 4194 | -8/Materials | Discovered new exit (range 4) 4326 | -8/Materials | Identified exit to Factory 4505 | -8/Materials | Entered Factory 4505 | -7/Factory | Evolved 2 slots: Utility x2 4536 | -7/Factory | Identified exit to Lower Caves 4641 | -7/Factory | Identified exit to Factory 4810 | -7/Factory | Build established: Hacker-Mutant 5178 | -7/Factory | Sucked down chute 5178 | -7/Factory | Entered Waste 5179 | -7/Waste | Met a frightened Derelict 5181 | -7/Waste | Spotted C-40 Crusher 5182 | -7/Waste | Spotted C-40 Crusher 5208 | -7/Waste | Spotted C-40 Crusher 5241 | -7/Waste | Spotted C-40 Crusher 5241 | -7/Waste | Spotted C-40 Crusher 5243 | -7/Waste | Crushed by Compactor (1 part destroyed, 1 dropped) 5246 | -7/Waste | Crushed by Compactor (1 part destroyed, 1 dropped) 5254 | -7/Waste | Spotted C-40 Crusher 5275 | -7/Waste | Discovered new exit (range 11) 5283 | -7/Waste | Warlord forces began an assault 5338 | -7/Waste | Allies destroyed C-40 Crusher 5338 | -7/Waste | Allies destroyed C-40 Crusher 5345 | -7/Waste | Allies destroyed C-40 Crusher 5345 | -7/Waste | Allies destroyed C-40 Crusher 5495 | -7/Waste | Entered Factory 5495 | -7/Factory | Accompanied by 18 allies 5514 | -7/Factory | Identified exit to DSF 5534 | -7/Factory | Discovered exit to Lower Caves (range 4) 5586 | -7/Factory | Lost 4 allies 5796 | -7/Factory | Repaired Hvy. Missile Launcher? 5845 | -7/Factory | Fabricated Cld. VTOL Module? 5883 | -7/Factory | Fabricated Cld. VTOL Module? 5910 | -7/Factory | Fabricated Cld. VTOL Module? 6035 | -7/Factory | Entered another Factory area 6035 | -6/Factory | Accompanied by 7 allies 6035 | -6/Factory | Evolved 2 slots: Propulsion x1, Utility x1 6146 | -6/Factory | Identified exit to Factory 6170 | -6/Factory | Lost 3 allies 6218 | -6/Factory | Discovered new exit (range 15) 6252 | -6/Factory | Build established: Hacker-Sprinter 6309 | -6/Factory | Discovered new exit (range 4) 6415 | -6/Factory | Entered another Factory area 6415 | -5/Factory | Accompanied by 1 ally 6415 | -5/Factory | Evolved 2 slots: Utility x2 6542 | -5/Factory | Found Prototype Launcher 6554 | -5/Factory | Identified exit to Factory 6554 | -5/Factory | Identified exit to Upper Caves 6707 | -5/Factory | Build established: Hacker-Ninja 6821 | -5/Factory | Entered Upper Caves 6970 | -5/Upper Caves | A Derelict revealed a hidden shortcut to "reach the base" 7001 | -5/Upper Caves | Learned Factory emergency access door positions 7118 | -5/Upper Caves | Build established: Hacker-Sprinter 7120 | -5/Upper Caves | Entered Warlord 7220 | -5/Warlord | Found Prototype Special Weapon 7220 | -5/Warlord | Identified RU-N14's Throwing Claymores v3 7223 | -5/Warlord | Found RU-N14's Throwing Claymores v3 7224 | -5/Warlord | Found RU-N14's Throwing Claymores v3 7229 | -5/Warlord | Found RU-N14's Throwing Claymores v3 7264 | -5/Warlord | Warlord's base attacked by MAIN.C 7276 | -5/Warlord | Found Prototype Piercing Weapon 7276 | -5/Warlord | Identified Vortex Lance 7282 | -5/Warlord | Found Prototype Energy Gun 7282 | -5/Warlord | Identified Vortex Rifle 7301 | -5/Warlord | Met Warlord 7313 | -5/Warlord | Found Prototype Device 7313 | -5/Warlord | Identified Exp. Cloaking Device 7318 | -5/Warlord | Found Prototype Device 7318 | -5/Warlord | Identified Thermal Barrier 7321 | -5/Warlord | Found Prototype Processor 7321 | -5/Warlord | Identified Exp. Core Analyzer 7324 | -5/Warlord | Found Prototype Hackware 7324 | -5/Warlord | Identified Ghost Barrier 7380 | -5/Warlord | Found Vortex Lance 7382 | -5/Warlord | Identified Tesla Bomb Launcher 7509 | -5/Warlord | Spotted B-86 Titan 7509 | -5/Warlord | Spotted B-75 Beast 7585 | -5/Warlord | Spotted Executioner 7614 | -5/Warlord | Warlord forces counterattacked 7616 | -5/Warlord | Spotted Executioner 7649 | -5/Warlord | Lost 3 allies 7651 | -5/Warlord | Found Exp. Core Analyzer 7682 | -5/Warlord | Spotted Striker 7697 | -5/Warlord | Spotted B-86 Titan 7704 | -5/Warlord | Spotted B-75 Beast 7723 | -5/Warlord | Lost 5 allies 7723 | -5/Warlord | Discovered new exit (range 8) 7738 | -5/Warlord | Entered Proximity Caves 7786 | -4/Proximity Caves | Spotted B-86 Titan 8026 | -4/Proximity Caves | Discovered exit to Factory (range 10) 8033 | -4/Proximity Caves | Entered Factory 8033 | -4/Factory | Evolved 2 slots: Power x1, Propulsion x1 8039 | -4/Factory | Identified exit to Research 8039 | -4/Factory | Identified exit to Upper Caves 8039 | -4/Factory | Identified exit to Extension 8039 | -4/Factory | Identified exit to Armory 8391 | -4/Factory | Entered Extension 8488 | -4/Extension | Rescued a captive Derelict 8488 | -4/Extension | Rescued a captive Derelict 8512 | -4/Extension | Rescued a captive Derelict 8857 | -4/Extension | Found Quantum Capacitor 9137 | -4/Extension | Build established: Scavenger-Mutant 9317 | -4/Extension | Rescued A7 9887 | -4/Extension | Spotted B-86 Titan 9912 | -4/Extension | Spotted B-86 Titan 9912 | -4/Extension | Destroyed B-86 Titan 9967 | -4/Extension | Lost 6 allies 10040 | -4/Extension | Destroyed B-86 Titan 10082 | -4/Extension | Extracted ID and sensor layout for unrecognized location from A7's data core 10182 | -4/Extension | Discovered exit to Research (range 5) 10225 | -4/Extension | Rescued a captive Derelict 10526 | -4/Extension | Lost 4 allies 10586 | -4/Extension | Rescued a captive Derelict 10651 | -4/Extension | Lost 5 allies 10672 | -4/Extension | Rescued a captive Derelict 10674 | -4/Extension | Rescued a captive Derelict 10693 | -4/Extension | Rescued a captive Derelict 10818 | -4/Extension | Discovered exit to Research (range 10) 10820 | -4/Extension | Discovered new exit (range 6) 10851 | -4/Extension | Found Hvy. Reflective Plating 11339 | -4/Extension | Entered Cetus 11339 | -4/Cetus | Accompanied by 8 allies 11361 | -4/Cetus | Spotted Cetus Guard 11361 | -4/Cetus | Spotted Cetus Guard 11361 | -4/Cetus | Spotted Cetus Guard 11367 | -4/Cetus | Spotted Cetus Guard 11374 | -4/Cetus | Allies destroyed Cetus Guard 11377 | -4/Cetus | Destroyed Cetus Guard 11386 | -4/Cetus | Destroyed Cetus Guard 11390 | -4/Cetus | Destroyed Cetus Guard 11408 | -4/Cetus | Lost 3 allies 11491 | -4/Cetus | Discovered new exit (range 16) 11522 | -4/Cetus | Entered Archives 11522 | -4/Archives | Accompanied by 5 allies 11543 | -4/Archives | Met Zhirov 11549 | -4/Archives | Reinforcements dispatched to Archives 11559 | -4/Archives | Unable to access archive contents 11570 | -4/Archives | Discovered new exit (range 16) 11594 | -4/Archives | Reinforcements dispatched to Archives 11596 | -4/Archives | Zhirov warped through subspace 11614 | -4/Archives | Zhirov detonated Archives 11632 | -4/Archives | Discovered exit to Research (range 16) 11638 | -4/Archives | Lost 6 allies 11645 | -4/Archives | Lost 3 parts (2n1u) 11647 | -4/Archives | Discovered new exit (range 10) 11663 | -4/Archives | Entered Hub_04(d) 11813 | -4/Hub_04(d) | Found Quantum Capacitor 12066 | -4/Hub_04(d) | Build established: Wizard-Mutant 12132 | -4/Hub_04(d) | Network Hub disabled 12132 | -4/Hub_04(d) | Network Hub disabled 12164 | -4/Hub_04(d) | Network Hub disabled 12328 | -4/Hub_04(d) | Entered Research 12328 | -3/Research | Evolved 2 slots: Utility x2 12329 | -3/Research | Discovered new exit (range 5) 12329 | -3/Research | Identified exit to Testing 12340 | -3/Research | Identified exit to Research 12618 | -3/Research | Entered another Research area 12618 | -2/Research | Warlord forces began assault on 0b10 12618 | -2/Research | Evolved 2 slots: Propulsion x1, Utility x1 12639 | -2/Research | Build established: Wizard-Ninja 12652 | -2/Research | Identified exit to Access 12728 | -2/Research | Research machine network offline 12730 | -2/Research | Discovered new exit (range 19) 12776 | -2/Research | Found Prototype Processor 12780 | -2/Research | Identified Exp. Targeting Computer 12784 | -2/Research | Found Exp. Targeting Computer 12808 | -2/Research | Lost 5 allies 12845 | -2/Research | Found Exp. Targeting Computer 12914 | -2/Research | Met up with Warlord 13041 | -2/Research | Spotted B-90 Cyclops 13257 | -2/Research | Spotted Striker 13257 | -2/Research | Spotted Executioner 13282 | -2/Research | Borebot progress halted 13286 | -2/Research | Borebot progress halted 13391 | -2/Research | Found Prototype Device 13391 | -2/Research | Identified Adv. Kinecellerator 13396 | -2/Research | Found Exp. Core Analyzer 13401 | -2/Research | Discovered new exit (range 16) 13472 | -2/Research | Borebot progress halted 13558 | -2/Research | Build established: Hacker-Ninja 13694 | -2/Research | Warlord invited to help at Command 13727 | -2/Research | Found Unknown Launcher 13727 | -2/Research | Identified Fusion Bomb Launcher 13766 | -2/Research | Entered Access 13766 | -1/Access | Evolved 2 slots: Propulsion x2 13852 | -1/Access | Spotted B-99 Colossus 13901 | -1/Access | Lost 5 allies 13915 | -1/Access | Build established: Wizard-Ninja 14040 | -1/Access | Identified exit to Surface 14120 | -1/Access | Found Prototype Device 14209 | -1/Access | Identified Exp. Shock Absorption System 14465 | *** | Escaped! Last Messages --------------- 14312_ K-01 Serf cleans the Terminal. 14319_ Destroyed Gravmag System. 14321_ Imp. System Restoration Module fried. 14321_ O-32 Director destroyed. 14324_ Acquired data core, extracted dynamic key. 14324_ Acquired 20 matter. 14325_ >> Machine Analyzer network decryption results: 14325_ Terminal x1 14327_ Connecting with Terminal... >>Layout(Zone) Retrieving Zone 2R layout... Downloaded map data. 14333_ R-10 Processor collects Gravmag System. 14337_ R-10 Processor collects Adv. Datajack. 14360_ U-05 Engineer builds a Wall. 14454_ W-44 Eye sends out distress signal. 14463_ Connecting with Terminal... >>Open(Door) Sealed Barrier opened. 14464_ The Access Shell folds into the floor. Map ----- +----------------------------------------------------+ | ?????????????????????## # """"" ##???????? | | ?????????????????????## # """"""""##???????? | | ?????????????????????## # """"""""##???????? | | ?????????????????????## # """"" ##???????? | | ?????????????????????## ? # ###??????? | | ?????????????????????## ? # ########## | | ?????????????????????## ?? ####################### | | ?????????????????????## ?? ###### # | | ?????????????????????## ??????### # | | ?????????????????????## ???????## # | | ???????????????????????????????## # | | ???????????????????????????????## # | | ???????????????????????????????## # | | ???????????????????????????????## # | | ?????????????????????BB????BB??## """ """ # | | ?????????????????????BB????BB??## """T""" # | | ???????????????????????????????#######+########### | | ???????????????????????????????###### ########### | | ???????????????????????????????????## ##????????? | | ??????????????????##"????????"##???## ##????????? | | ??????????????????##""""""""""##???##% ##????????? | | ??????????????????## ##???## ##????????? | | ??????????????????## ##???## ##????????? | | ??????????????????## ##???## ########### | | ??????????????????## "" ##???## ########### | | ??????????????????## "@ ##???## + | | ??????????????????## ##???## ## | | ??????????????????## ##???## ## | | ?????????????????### ###??## ## | | ?????????????????### ###??## ## | | ?????????????""??## ##??## ## | | ????????????"""??###"" ###??## ## | | ????????????"T???###"" ###??## ## """""" | | ??????????w?"""???##"" ##???## ## """""" | | ?????????????""???##T ##???## ## """""" | | ??????????????????##"" ##???## ## """""" | | ???????????? ###"" ####### ## """""" | | ????????????##/#####"" ####### ###+####### | | ???????? h h k | | ???????? gg | | ???????? ################ ############### | | ???????? ################ ############ | | ???????? ???????????????? # ????????????? | | ???????? ???????????????? # ????????????? | | ?????????? ???????????????? # ????????????? | | ??????????? ??????????????? # ????????????? | | ?????????????????????????? + ????????????? | | ??????????????????????? # ????????????? | | ??????????????????????? ############ ????????????? | | ??????????????????????? ############ ????????????? | +----------------------------------------------------+ Best States ------------- Heat Dissipation 81 Coolant Potential 120 Energy Generation 43 Energy Capacity 600 Matter Stores 300 Matter Capacity 300 Sight Range 23 Robot Scan Range 16 Terrain Scan Range 16 Terrain Scan Density 10 ECM Strength 2 Jamming Range 14 Power Amplification 30 Armor Coverage 825 Resistance: TH 25 Core Shielding 30 Utility Shielding 66 Point Defense Rating 80 Evasion (%) 65 Targeting Accuracy 12 Core Analysis 8 Armor Integrity Analysis 40 Recoil Reduction 5 Offensive Hacking 68 Defensive Hacking 20 Authchip Count 1 Item Schematics ----------------- Transmission Jammer | -7/Factory | Hacked Cld. VTOL Module | -7/Factory | Hacked Adv. Hacking Suite | -5/Factory | Hacked Biomechanical Wings | -4/Factory | Scanalyzed Robot Schematics ------------------ None Fabricated ------------ Cld. VTOL Module | x1 | -7/Factory Cld. VTOL Module | x1 | -7/Factory Cld. VTOL Module | x1 | -7/Factory Alien Tech Used ----------------- None Achievements -------------- None Challenges ------------ None Game ------ Seed DefenseCooledNanosword Manual? 0 Play Time 06:40:57 Cumulative 571.8 hours Start 2024.09.06 @ 17:00:12 End 2024.09.07 @ 15:41:56 Sessions 9 Manual Loads 0 Difficulty Rogue Special Mode None Game No. 132 Rogue 92 Adventurer 4 Explorer 36 Win Type 0 Total 41 Types 21/6/4/2/2/3/2/0/1 Lore% 72 Gallery% 86 Achievement% 89 Wizard Run 0 Options --------- Layout 0 ASCII 0 Keyboard 1 Movement Vi Keybinds 0 Fullscreen 1 Font 18/X11 Map View 112x50 Zoom Use 0% Tactical HUD 1 Map Filters NONE Filters NONE Steam 1 RUN: 6056a77e-b22a-43fa-be3e-9480994bddbe